[Event "Eurasia Open Cup 2018"]
[Site "Jekaterienburg"]
[Date "2018.08.09"]
[Round "8"]
[White "Shaposhnikov, Evgeny"]
[Black "Mokshanov, Alexey"]
[Result "1/2-1/2"]
[ECO "C07"]
[WhiteElo "2588"]
[BlackElo "2439"]
[Annotator "ChessBase"]
[PlyCount "124"]
[EventDate "2018.08.01"]
[EventType "swiss"]
[EventCountry "RUS"]
[SourceTitle "playchess.com"]
[Source "ChessBase"]
[SourceQuality "1"]
[TimeControl "5400+30"]

1. e4 {[%emt 0:00:00]} e6 {[%emt 0:00:00]} 2. d4 {[%emt 0:00:05]} d5 {[%emt 0:00:00]} 3. Nd2 {[%emt 0:00:10]} c5 {[%emt 0:02:01]} 4. Ngf3 {[%emt 0:00:36]} cxd4 {[%emt 0:02:42]} 5. Nxd4 {[%emt 0:00:08]} Nc6 {[%emt 0:01:44]} 6. Nxc6 {[%emt 0:00:49]} bxc6 {[%emt 0:00:06]} 7. Bd3 {[%emt 0:00:15]} Bd6 {[%emt 0:02:58]} 8. Qe2 {[%emt 0:01:42]} Qc7 {[%emt 0:20:19]} 9. Nf3 {[%emt 0:01:17]} Ne7 {[%emt 0:00:16]} 10. e5 {[%emt 0:03:43]} Bc5 {[%emt 0:01:13]} 11. O-O {[%emt 0:02:52]} a5 {[%emt 0:02:04]} 12. Bf4 {[%emt 0:11:05]} h6 {[%emt 0:04:40]} 13. c4 {[%emt 0:03:15]} Ba6 {[%emt 0:09:22]} 14. Rac1 {[%emt 0:08:26]} Qb6 {[%emt 0:02:26]} 15. b3 {[%emt 0:10:43]} a4 {[%emt 0:11:15]} 16. Rb1 {[%emt 0:03:20]} axb3 {[%emt 0:01:44]} 17. axb3 {[%emt 0:00:51]} Qb7 {[%emt 0:03:16]} 18. b4 {[%emt 0:17:13]} dxc4 {[%emt 0:00:53]} 19. Bxc4 {[%emt 0:00:47]} Bxc4 {[%emt 0:00:24]} 20. Qxc4 {[%emt 0:00:02]} Ba7 {[%emt 0:01:11]} 21. Nd2 {[%emt 0:07:09]} Nd5 {[%emt 0:06:19]} 22. Ne4 {[%emt 0:00:47]} O-O {[%emt 0:00:17]} 23. Qc1 {[%emt 0:05:19]} Qc7 {[%emt 0:04:03]} 24. Bg3 {[%emt 0:06:43]} Bd4 {[%emt 0:03:58]} 25. b5 {[%emt 0:04:08]} cxb5 {[%emt 0:02:14]} 26. Qxc7 {[%emt 0:01:18]} Nxc7 {[%emt 0:00:05]} 27. Rfc1 {[%emt 0:00:48]} Nd5 {[%emt 0:02:14]} 28. Rxb5 {[%emt 0:00:11]} Rfc8 {[%emt 0:01:00]} 29. Rxc8+ {[%emt 0:03:05]} Rxc8 {[%emt 0:00:00]} 30. h4 {[%emt 0:00:48]} Nc3 {[%emt 0:00:59]} 31. Nxc3 {[%emt 0:00:00]} Rxc3 {[%emt 0:00:06]} 32. Kh2 {[%emt 0:00:35]} h5 {[%emt 0:00:46]} 33. Rb4 {[%emt 0:00:25]} Bc5 {[%emt 0:00:16]} 34. Rb7 {[%emt 0:01:06]} Bd4 {[%emt 0:02:05]} 35. Rd7 {[%emt 0:01:15]} Rc4 {[%emt 0:00:16]} 36. f3 {[%emt 0:00:50]} Bc3 {[%emt 0:00:08]} 37. Kh3 {[%emt 0:01:58]} Rc5 {[%emt 0:00:36]} 38. f4 {[%emt 0:00:04]} Rc4 {[%emt 0:00:32]} 39. Bh2 {[%emt 0:00:14]} Ba5 {[%emt 0:01:04]} 40. Rd1 {[%emt 0:01:03]} Kh7 {[%emt 0:01:15]} 41. g3 {[%emt 0:00:11]} Kg6 {[%emt 0:00:16]} 42. Bg1 {[%emt 0:00:13]} Kf5 {[%emt 0:01:27]} 43. Rd7 {[%emt 0:00:15]} Rc7 {[%emt 0:00:04]} 44. Rxc7 {[%emt 0:00:41]} Bxc7 {[%emt 0:00:00]} 45. Kg2 {[%emt 0:00:37]} Kg4 {[%emt 0:00:00]} 46. Bd4 {[%emt 0:00:13]} Ba5 {[%emt 0:00:41]} 47. Kf2 {[%emt 0:00:26]} Bd2 {[%emt 0:00:12]} 48. Bb2 {[%emt 0:00:33]} Ba5 {[%emt 0:06:43]} 49. Bd4 {[%emt 0:00:09]} Bc7 {[%emt 0:00:12]} 50. Kg2 {[%emt 0:01:20]} Kf5 {[%emt 0:00:28]} 51. Bc5 {[%emt 0:00:30]} f6 {[%emt 0:00:33]} 52. Bd6 {[%emt 0:00:06]} Bb6 {[%emt 0:00:04]} 53. exf6 {[%emt 0:00:04]} gxf6 {[%emt 0:00:05]} 54. Kf3 {[%emt 0:00:08]} Bd4 {[%emt 0:00:05]} 55. Bc7 {[%emt 0:02:01]} e5 {[%emt 0:00:04]} 56. fxe5 {[%emt 0:00:17]} fxe5 {[%emt 0:00:01]} 57. Bb8 {[%emt 0:00:38]} e4+ {[%emt 0:00:05]} 58. Ke2 {[%emt 0:00:53]} Ke6 {[%emt 0:00:29]} 59. Bc7 {[%emt 0:00:09]} Be5 {[%emt 0:00:39]} 60. Bxe5 {[%emt 0:00:34]} Kxe5 {[%emt 0:00:11]} 61. Ke3 {[%emt 0:00:28]} Kf5 {[%emt 0:00:14]} 62. Ke2 {[%emt 0:00:07]} Ke6 {[%emt 0:01:04]} 1/2-1/2

[Event "Eurasia Open Cup 2018"]
[Site "Jekaterienburg"]
[Date "2018.08.09"]
[Round "8"]
[White "Sorokin, Aleksey"]
[Black "Fakhrutdinov, Timur"]
[Result "1/2-1/2"]
[ECO "E08"]
[WhiteElo "2519"]
[BlackElo "2463"]
[Annotator "ChessBase"]
[PlyCount "84"]
[EventDate "2018.08.01"]
[EventType "swiss"]
[EventCountry "RUS"]
[SourceTitle "playchess.com"]
[Source "ChessBase"]
[SourceQuality "1"]
[TimeControl "5400+30"]

1. d4 {[%emt 0:00:00]} Nf6 {[%emt 0:00:00]} 2. c4 {[%emt 0:00:00]} e6 {[%emt 0:00:00]} 3. Nf3 {[%emt 0:01:14]} d5 {[%emt 0:00:00]} 4. g3 {[%emt 0:00:20]} Bb4+ {[%emt 0:00:00]} 5. Bd2 {[%emt 0:00:13]} Be7 {[%emt 0:00:03]} 6. Bg2 {[%emt 0:01:06]} O-O {[%emt 0:00:06]} 7. O-O {[%emt 0:00:08]} c6 {[%emt 0:00:09]} 8. Qc2 {[%emt 0:01:13]} Nbd7 {[%emt 0:00:09]} 9. Rd1 {[%emt 0:00:48]} b6 {[%emt 0:00:00]} 10. Bf4 {[%emt 0:00:41]} Ba6 {[%emt 0:00:00]} 11. cxd5 {[%emt 0:00:42]} cxd5 {[%emt 0:00:33]} 12. Ne5 {[%emt 0:00:26]} Nxe5 {[%emt 0:00:23]} 13. dxe5 {[%emt 0:00:17]} Ng4 {[%emt 0:00:35]} 14. Bf3 {[%emt 0:04:02]} f5 {[%emt 0:00:55]} 15. exf6 {[%emt 0:00:00]} Nxf6 {[%emt 0:00:12]} 16. Qa4 {[%emt 0:00:33]} Bb7 {[%emt 0:01:17]} 17. Nd2 {[%emt 0:00:15]} Qe8 {[%emt 0:12:16]} 18. Qxe8 {[%emt 0:02:47]} Rfxe8 {[%emt 0:00:49]} 19. Nc4 {[%emt 0:06:24]} Red8 {[%emt 0:02:56]} 20. Rac1 {[%emt 0:04:12]} Rac8 {[%emt 0:07:06]} 21. h4 {[%emt 0:06:54]} Rc5 {[%emt 0:16:47]} 22. Ne5 {[%emt 0:04:30]} Rdc8 {[%emt 0:01:02]} 23. Rxc5 {[%emt 0:02:17]} Rxc5 {[%emt 0:05:41]} 24. g4 {[%emt 0:01:37]} Bc8 {[%emt 0:14:53]} 25. g5 {[%emt 0:02:45]} Nd7 {[%emt 0:01:27]} 26. Nxd7 {[%emt 0:06:43]} Bxd7 {[%emt 0:00:08]} 27. e4 {[%emt 0:02:53]} Bc6 {[%emt 0:09:35]} 28. Be3 {[%emt 0:00:09]} Rc2 {[%emt 0:01:36]} 29. exd5 {[%emt 0:01:27]} Bxd5 {[%emt 0:00:43]} 30. Bxd5 {[%emt 0:00:29]} exd5 {[%emt 0:00:05]} 31. Rxd5 {[%emt 0:00:58]} Rxb2 {[%emt 0:00:35]} 32. Rd7 {[%emt 0:01:37]} Bc5 {[%emt 0:01:05]} 33. Bxc5 {[%emt 0:00:19]} bxc5 {[%emt 0:00:06]} 34. a3 {[%emt 0:00:36]} c4 {[%emt 0:06:12]} 35. Rxa7 {[%emt 0:00:34]} c3 {[%emt 0:00:00]} 36. Kg2 {[%emt 0:01:03]} Ra2 {[%emt 0:05:29]} 37. h5 {[%emt 0:01:33]} c2 {[%emt 0:01:49]} 38. Rc7 {[%emt 0:00:30]} Kf8 {[%emt 0:00:00]} 39. a4 {[%emt 0:02:12]} Rxa4 {[%emt 0:00:47]} 40. Rxc2 {[%emt 0:00:33]} Rg4+ {[%emt 0:00:12]} 41. Kf3 {[%emt 0:01:55]} Rxg5 {[%emt 0:00:07]} 42. Rc8+ {[%emt 0:00:24]} Kf7 {[%emt 0:00:15]} 1/2-1/2

[Event "Eurasia Open Cup 2018"]
[Site "Jekaterienburg"]
[Date "2018.08.09"]
[Round "8"]
[White "Gutenev, Alexander"]
[Black "Dubinin, Alexsandr"]
[Result "1-0"]
[ECO "B33"]
[WhiteElo "2470"]
[BlackElo "2260"]
[Annotator "ChessBase"]
[PlyCount "75"]
[EventDate "2018.08.01"]
[EventType "swiss"]
[EventCountry "RUS"]
[SourceTitle "playchess.com"]
[Source "ChessBase"]
[SourceQuality "1"]
[TimeControl "5400+30"]

1. e4 {[%emt 0:00:00]} c5 {[%emt 0:04:46]} 2. Nf3 {[%emt 0:00:00]} Nc6 {[%emt 0:00:00]} 3. d4 {[%emt 0:00:00]} cxd4 {[%emt 0:00:14]} 4. Nxd4 {[%emt 0:00:00]} Nf6 {[%emt 0:00:10]} 5. Nc3 {[%emt 0:00:00]} e5 {[%emt 0:00:13]} 6. Ndb5 {[%emt 0:00:03]} d6 {[%emt 0:00:10]} 7. Bg5 {[%emt 0:00:15]} a6 {[%emt 0:00:09]} 8. Na3 {[%emt 0:00:00]} b5 {[%emt 0:00:16]} 9. Nd5 {[%emt 0:00:09]} Be7 {[%emt 0:00:19]} 10. Bxf6 {[%emt 0:00:06]} Bxf6 {[%emt 0:00:11]} 11. c4 {[%emt 0:02:47]} b4 {[%emt 0:00:27]} 12. Nc2 {[%emt 0:00:06]} O-O {[%emt 0:00:26]} 13. g3 {[%emt 0:00:08]} a5 {[%emt 0:00:36]} 14. Bg2 {[%emt 0:00:06]} Bg5 {[%emt 0:00:23]} 15. O-O {[%emt 0:00:05]} Ne7 {[%emt 0:00:27]} 16. Nde3 {[%emt 0:04:46]} Bxe3 {[%emt 0:04:56]} 17. Nxe3 {[%emt 0:00:00]} Be6 {[%emt 0:01:02]} 18. Qd3 {[%emt 0:00:31]} Qc7 {[%emt 0:01:30]} 19. b3 {[%emt 0:00:54]} Nc6 {[%emt 0:04:22]} 20. Rad1 {[%emt 0:08:21]} Rfd8 {[%emt 0:02:06]} 21. Nf5 {[%emt 0:06:16]} a4 {[%emt 0:04:49]} 22. Qe3 {[%emt 0:05:01]} Na5 {[%emt 0:15:46]} 23. Rd3 {[%emt 0:13:15]} Nb7 {[%emt 0:04:54]} 24. Qd2 {[%emt 0:12:20]} Nc5 {[%emt 0:08:16]} 25. Re3 {[%emt 0:00:05]} Ra6 {[%emt 0:05:48]} 26. Rd1 {[%emt 0:05:31]} Rb8 {[%emt 0:08:28]} 27. h3 {[%emt 0:09:58]} Qd7 {[%emt 0:07:00]} 28. g4 {[%emt 0:07:38]} Qa7 {[%emt 0:01:04]} 29. Rg3 {[%emt 0:02:02]} Rd8 {[%emt 0:10:06]} 30. Nxg7 {[%emt 0:02:26]} f6 {[%emt 0:08:02]} 31. Nh5 {[%emt 0:00:00]} axb3 {[%emt 0:01:35]} 32. axb3 {[%emt 0:00:30]} Ra2 {[%emt 0:00:07]} 33. Nxf6+ {[%emt 0:00:51]} Kh8 {[%emt 0:01:09]} 34. Qh6 {[%emt 0:06:57]} Nxb3 {[%emt 0:05:11]} 35. Nxh7 {[%emt 0:00:40]} Qxf2+ {[%emt 0:01:24]} 36. Kh2 {[%emt 0:00:40]} Kg8 {[%emt 0:00:27]} 37. Qg6+ {[%emt 0:01:04]} Kh8 {[%emt 0:00:08]} 38. Nf6 {[%emt 0:00:21]} 1-0

[Event "Eurasia Open Cup 2018"]
[Site "Jekaterienburg"]
[Date "2018.08.09"]
[Round "8"]
[White "Kozionov, Kirill"]
[Black "Isanzhulov, Arystan"]
[Result "1-0"]
[ECO "E61"]
[WhiteElo "2461"]
[BlackElo "2146"]
[Annotator "ChessBase"]
[PlyCount "85"]
[EventDate "2018.08.01"]
[EventType "swiss"]
[EventCountry "RUS"]
[SourceTitle "playchess.com"]
[Source "ChessBase"]
[SourceQuality "1"]
[TimeControl "5400+30"]

1. d4 {[%emt 0:00:00]} d6 {[%emt 0:00:00]} 2. c4 {[%emt 0:00:00]} g6 {[%emt 0:00:00]} 3. Nf3 {[%emt 0:00:00]} Nf6 {[%emt 0:00:00]} 4. Nc3 {[%emt 0:00:22]} Bf5 {[%emt 0:00:11]} 5. Qb3 {[%emt 0:00:33]} Qc8 {[%emt 0:01:05]} 6. h3 {[%emt 0:00:11]} c5 {[%emt 0:11:48]} 7. d5 {[%emt 0:01:02]} Bg7 {[%emt 0:01:10]} 8. g4 {[%emt 0:00:50]} Bd7 {[%emt 0:00:04]} 9. e4 {[%emt 0:00:28]} O-O {[%emt 0:02:12]} 10. Be3 {[%emt 0:13:01]} Na6 {[%emt 0:05:24]} 11. Nd2 {[%emt 0:05:57]} e5 {[%emt 0:09:10]} 12. Be2 {[%emt 0:02:48]} Nc7 {[%emt 0:03:31]} 13. g5 {[%emt 0:03:38]} Nfe8 {[%emt 0:00:35]} 14. h4 {[%emt 0:02:16]} a6 {[%emt 0:07:45]} 15. Na4 {[%emt 0:00:09]} Bxa4 {[%emt 0:01:31]} 16. Qxa4 {[%emt 0:00:06]} b5 {[%emt 0:00:14]} 17. Qc2 {[%emt 0:05:58]} bxc4 {[%emt 0:08:36]} 18. Nxc4 {[%emt 0:01:16]} Nb5 {[%emt 0:00:00]} 19. Nb6 {[%emt 0:00:11]} Qd8 {[%emt 0:00:00]} 20. Nxa8 {[%emt 0:00:11]} Qxa8 {[%emt 0:00:00]} 21. a4 {[%emt 0:20:11]} Nd4 {[%emt 0:00:24]} 22. Bxd4 {[%emt 0:00:00]} exd4 {[%emt 0:00:00]} 23. Ra3 {[%emt 0:01:34]} Nc7 {[%emt 0:02:54]} 24. h5 {[%emt 0:07:37]} Re8 {[%emt 0:00:42]} 25. Kf1 {[%emt 0:02:59]} Qd8 {[%emt 0:06:00]} 26. Rg3 {[%emt 0:01:28]} a5 {[%emt 0:09:26]} 27. b3 {[%emt 0:01:16]} Qc8 {[%emt 0:02:24]} 28. Rh4 {[%emt 0:09:52]} Na6 {[%emt 0:02:21]} 29. Bb5 {[%emt 0:01:23]} Re7 {[%emt 0:01:15]} 30. Qe2 {[%emt 0:01:45]} Nb4 {[%emt 0:00:29]} 31. Qf3 {[%emt 0:01:18]} Qb7 {[%emt 0:00:30]} 32. Rgh3 {[%emt 0:00:11]} Bh8 {[%emt 0:00:52]} 33. Kg1 {[%emt 0:00:30]} Qc8 {[%emt 0:00:39]} 34. Qh1 {[%emt 0:00:30]} Qc7 {[%emt 0:02:39]} 35. Be2 {[%emt 0:05:01]} d3 {[%emt 0:00:23]} 36. Bg4 {[%emt 0:01:53]} Bd4 {[%emt 0:00:38]} 37. hxg6 {[%emt 0:03:52]} fxg6 {[%emt 0:04:30]} 38. Be6+ {[%emt 0:01:55]} Kh8 {[%emt 0:01:21]} 39. Qf3 {[%emt 0:00:29]} Qd8 {[%emt 0:00:01]} 40. Rf4 {[%emt 0:00:24]} Kg7 {[%emt 0:00:01]} 41. Rxh7+ {[%emt 0:01:53]} Kxh7 {[%emt 0:01:48]} 42. Qh1+ {[%emt 0:00:14]} Kg7 {[%emt 0:01:09]} 43. Qh6# {[%emt 0:00:15]} 1-0

[Event "Eurasia Open Cup 2018"]
[Site "Jekaterienburg"]
[Date "2018.08.09"]
[Round "8"]
[White "Badmatsyrenov, Oleg"]
[Black "Kryakvin, Dmitry"]
[Result "0-1"]
[ECO "C00"]
[WhiteElo "2454"]
[BlackElo "2591"]
[Annotator "ChessBase"]
[PlyCount "84"]
[EventDate "2018.08.01"]
[EventType "swiss"]
[EventCountry "RUS"]
[SourceTitle "playchess.com"]
[Source "ChessBase"]
[SourceQuality "1"]
[TimeControl "5400+30"]

1. e4 {[%emt 0:00:09]} e6 {[%emt 0:01:06]} 2. Qe2 {[%emt 0:00:50]} c5 {[%emt 0:00:07]} 3. b3 {[%emt 0:00:00]} Nc6 {[%emt 0:00:06]} 4. Bb2 {[%emt 0:00:08]} Nge7 {[%emt 0:00:08]} 5. Qh5 {[%emt 0:07:15]} d5 {[%emt 0:02:06]} 6. Nf3 {[%emt 0:00:35]} dxe4 {[%emt 0:10:34]} 7. Ng5 {[%emt 0:00:41]} Ng6 {[%emt 0:00:03]} 8. Nc3 {[%emt 0:11:39]} Be7 {[%emt 0:15:12]} 9. Ncxe4 {[%emt 0:05:23]} Nd4 {[%emt 0:04:01]} 10. O-O-O {[%emt 0:09:52]} Bd7 {[%emt 0:08:15]} 11. Re1 {[%emt 0:27:39]} Bc6 {[%emt 0:13:23]} 12. h4 {[%emt 0:06:24]} Qd7 {[%emt 0:06:56]} 13. Rh3 {[%emt 0:13:46]} Rd8 {[%emt 0:03:45]} 14. c3 {[%emt 0:02:02]} Nf5 {[%emt 0:08:48]} 15. Rd3 {[%emt 0:00:08]} Qc7 {[%emt 0:00:06]} 16. Rxd8+ {[%emt 0:01:37]} Qxd8 {[%emt 0:01:21]} 17. g3 {[%emt 0:00:11]} Qd7 {[%emt 0:00:43]} 18. Bh3 {[%emt 0:04:14]} b6 {[%emt 0:06:14]} 19. c4 {[%emt 0:02:50]} Nd4 {[%emt 0:00:56]} 20. f4 {[%emt 0:00:06]} Kf8 {[%emt 0:04:02]} 21. Bc3 {[%emt 0:02:28]} Kg8 {[%emt 0:02:07]} 22. Kb1 {[%emt 0:01:16]} f5 {[%emt 0:00:43]} 23. Nf2 {[%emt 0:01:04]} Bxg5 {[%emt 0:00:15]} 24. hxg5 {[%emt 0:00:41]} Bf3 {[%emt 0:00:00]} 25. g4 {[%emt 0:00:00]} Ne2 {[%emt 0:02:46]} 26. Rxe2 {[%emt 0:00:49]} Bxe2 {[%emt 0:00:28]} 27. Bg2 {[%emt 0:01:04]} Qd6 {[%emt 0:01:04]} 28. Qh1 {[%emt 0:00:29]} Bxg4 {[%emt 0:00:46]} 29. Nxg4 {[%emt 0:00:10]} fxg4 {[%emt 0:00:05]} 30. Be4 {[%emt 0:00:42]} Qxf4 {[%emt 0:00:34]} 31. Kb2 {[%emt 0:00:31]} Qxg5 {[%emt 0:00:52]} 32. Bc2 {[%emt 0:00:39]} Nf8 {[%emt 0:00:21]} 33. Qa8 {[%emt 0:00:12]} h5 {[%emt 0:00:29]} 34. d4 {[%emt 0:00:06]} g3 {[%emt 0:00:41]} 35. Be4 {[%emt 0:00:06]} cxd4 {[%emt 0:00:49]} 36. Bb4 {[%emt 0:00:02]} Qf6 {[%emt 0:00:20]} 37. Qc8 {[%emt 0:00:46]} Rh6 {[%emt 0:00:54]} 38. c5 {[%emt 0:00:53]} bxc5 {[%emt 0:00:51]} 39. Qxc5 {[%emt 0:00:10]} h4 {[%emt 0:00:30]} 40. Qd6 {[%emt 0:00:03]} Qf2+ {[%emt 0:01:17]} 41. Ka3 {[%emt 0:00:06]} h3 {[%emt 0:00:32]} 42. Bc5 {[%emt 0:00:36]} g2 {[%emt 0:00:18]} 0-1

[Event "Eurasia Open Cup 2018"]
[Site "Jekaterienburg"]
[Date "2018.08.09"]
[Round "8"]
[White "Drygalov, Andrey"]
[Black "Timofeev, Artyom"]
[Result "1/2-1/2"]
[ECO "C10"]
[WhiteElo "2450"]
[BlackElo "2590"]
[Annotator "ChessBase"]
[PlyCount "81"]
[EventDate "2018.08.01"]
[EventType "swiss"]
[EventCountry "RUS"]
[SourceTitle "playchess.com"]
[Source "ChessBase"]
[SourceQuality "1"]
[TimeControl "5400+30"]

1. e4 {[%emt 0:00:00]} e6 {[%emt 0:00:00]} 2. d4 {[%emt 0:00:26]} d5 {[%emt 0:00:00]} 3. Nd2 {[%emt 0:00:16]} dxe4 {[%emt 0:00:00]} 4. Nxe4 {[%emt 0:00:37]} Nd7 {[%emt 0:00:01]} 5. Nf3 {[%emt 0:00:19]} Ngf6 {[%emt 0:00:07]} 6. Nxf6+ {[%emt 0:00:04]} Nxf6 {[%emt 0:00:05]} 7. Be3 {[%emt 0:00:09]} Be7 {[%emt 0:00:17]} 8. Bd3 {[%emt 0:00:43]} O-O {[%emt 0:00:09]} 9. Qe2 {[%emt 0:01:16]} b6 {[%emt 0:00:09]} 10. O-O-O {[%emt 0:02:35]} Bb7 {[%emt 0:00:06]} 11. Kb1 {[%emt 0:01:53]} Nd5 {[%emt 0:00:39]} 12. Bd2 {[%emt 0:08:46]} c5 {[%emt 0:00:42]} 13. c4 {[%emt 0:06:50]} Nf6 {[%emt 0:01:56]} 14. Bc3 {[%emt 0:04:12]} Qc7 {[%emt 0:05:14]} 15. dxc5 {[%emt 0:02:37]} Qxc5 {[%emt 0:00:48]} 16. Ne5 {[%emt 0:02:25]} Rad8 {[%emt 0:02:23]} 17. f3 {[%emt 0:07:49]} Rd6 {[%emt 0:03:42]} 18. Rd2 {[%emt 0:13:55]} Rfd8 {[%emt 0:02:47]} 19. Rhd1 {[%emt 0:00:50]} a5 {[%emt 0:08:21]} 20. a3 {[%emt 0:04:49]} g6 {[%emt 0:10:47]} 21. Bc2 {[%emt 0:16:21]} Ba6 {[%emt 0:10:23]} 22. Rxd6 {[%emt 0:08:07]} Rxd6 {[%emt 0:00:43]} 23. g3 {[%emt 0:08:54]} Rxd1+ {[%emt 0:21:09]} 24. Qxd1 {[%emt 0:00:10]} Bxc4 {[%emt 0:01:45]} 25. Bd4 {[%emt 0:00:40]} Qd5 {[%emt 0:00:07]} 26. Nxc4 {[%emt 0:00:34]} Qxc4 {[%emt 0:00:00]} 27. Bxb6 {[%emt 0:00:57]} Qb5 {[%emt 0:01:23]} 28. Bd4 {[%emt 0:02:07]} e5 {[%emt 0:02:11]} 29. Bc3 {[%emt 0:02:10]} Nd5 {[%emt 0:00:11]} 30. Qe1 {[%emt 0:03:08]} Bxa3 {[%emt 0:05:05]} 31. Qxe5 {[%emt 0:01:10]} Nxc3+ {[%emt 0:00:09]} 32. Qxc3 {[%emt 0:00:00]} Bb4 {[%emt 0:00:29]} 33. Qd3 {[%emt 0:00:09]} Qxd3 {[%emt 0:01:33]} 34. Bxd3 {[%emt 0:00:05]} f5 {[%emt 0:00:06]} 35. Kc2 {[%emt 0:00:00]} Bc5 {[%emt 0:00:17]} 36. Kd1 {[%emt 0:00:41]} Bg1 {[%emt 0:00:19]} 37. h3 {[%emt 0:00:05]} Bf2 {[%emt 0:00:16]} 38. g4 {[%emt 0:00:03]} f4 {[%emt 0:00:05]} 39. Ke2 {[%emt 0:00:05]} Bh4 {[%emt 0:00:06]} 40. Bc4+ {[%emt 0:00:07]} Kg7 {[%emt 0:00:05]} 41. b3 {[%emt 0:00:00]} 1/2-1/2

[Event "Eurasia Open Cup 2018"]
[Site "Jekaterienburg"]
[Date "2018.08.09"]
[Round "8"]
[White "Drygalov, Sergey"]
[Black "Matsenko, Sergei"]
[Result "1/2-1/2"]
[ECO "E39"]
[WhiteElo "2433"]
[BlackElo "2533"]
[Annotator "ChessBase"]
[PlyCount "82"]
[EventDate "2018.08.01"]
[EventType "swiss"]
[EventCountry "RUS"]
[SourceTitle "playchess.com"]
[Source "ChessBase"]
[SourceQuality "1"]
[TimeControl "5400+30"]

1. d4 {[%emt 0:00:00]} Nf6 {[%emt 0:11:02]} 2. c4 {[%emt 0:00:00]} e6 {[%emt 0:00:00]} 3. Nc3 {[%emt 0:00:00]} Bb4 {[%emt 0:00:00]} 4. Qc2 {[%emt 0:00:00]} c5 {[%emt 0:00:42]} 5. dxc5 {[%emt 0:00:00]} O-O {[%emt 0:00:04]} 6. a3 {[%emt 0:00:00]} Bxc5 {[%emt 0:00:01]} 7. Nf3 {[%emt 0:00:14]} b6 {[%emt 0:00:04]} 8. Bf4 {[%emt 0:00:05]} Bb7 {[%emt 0:00:02]} 9. Rd1 {[%emt 0:00:04]} Nc6 {[%emt 0:00:17]} 10. e3 {[%emt 0:01:13]} Nh5 {[%emt 0:02:39]} 11. Bg3 {[%emt 0:00:31]} Be7 {[%emt 0:04:35]} 12. Be2 {[%emt 0:01:00]} h6 {[%emt 0:01:33]} 13. O-O {[%emt 0:01:53]} Nxg3 {[%emt 0:01:07]} 14. hxg3 {[%emt 0:00:04]} a6 {[%emt 0:08:24]} 15. Rd2 {[%emt 0:07:14]} Qc7 {[%emt 0:01:49]} 16. Rfd1 {[%emt 0:00:55]} Rfd8 {[%emt 0:00:00]} 17. g4 {[%emt 0:16:04]} Na5 {[%emt 0:07:09]} 18. b4 {[%emt 0:22:38]} Nxc4 {[%emt 0:18:13]} 19. Bxc4 {[%emt 0:01:00]} Qxc4 {[%emt 0:14:09]} 20. Rxd7 {[%emt 0:04:22]} Rxd7 {[%emt 0:01:17]} 21. Rxd7 {[%emt 0:00:08]} Qc8 {[%emt 0:06:47]} 22. Qd1 {[%emt 0:16:50]} Qxc3 {[%emt 0:14:27]} 23. Rxb7 {[%emt 0:01:36]} Rd8 {[%emt 0:00:06]} 24. Rd7 {[%emt 0:02:25]} Qc7 {[%emt 0:05:00]} 25. Rxd8+ {[%emt 0:00:45]} Qxd8 {[%emt 0:00:00]} 26. Qc2 {[%emt 0:01:33]} g6 {[%emt 0:00:35]} 27. g3 {[%emt 0:01:24]} Bf6 {[%emt 0:00:24]} 28. Kg2 {[%emt 0:01:16]} Kg7 {[%emt 0:00:36]} 29. Qc6 {[%emt 0:00:14]} Qd3 {[%emt 0:00:49]} 30. a4 {[%emt 0:00:19]} Qb3 {[%emt 0:00:04]} 31. a5 {[%emt 0:02:31]} bxa5 {[%emt 0:00:38]} 32. bxa5 {[%emt 0:00:34]} Qd3 {[%emt 0:00:51]} 33. Nd4 {[%emt 0:04:20]} Bxd4 {[%emt 0:01:27]} 34. exd4 {[%emt 0:00:04]} g5 {[%emt 0:00:25]} 35. Qd6 {[%emt 0:04:50]} Qe4+ {[%emt 0:00:21]} 36. Kf1 {[%emt 0:01:22]} Qb1+ {[%emt 0:00:15]} 37. Kg2 {[%emt 0:00:32]} Qe4+ {[%emt 0:00:15]} 38. Kf1 {[%emt 0:00:52]} Qb1+ {[%emt 0:00:28]} 39. Kg2 {[%emt 0:00:04]} Qb7+ {[%emt 0:01:27]} 40. Kg1 {[%emt 0:00:41]} Qb1+ {[%emt 0:00:08]} 41. Kg2 {[%emt 0:03:29]} Qe4+ {[%emt 0:00:41]} 1/2-1/2

[Event "Eurasia Open Cup 2018"]
[Site "Jekaterienburg"]
[Date "2018.08.09"]
[Round "8"]
[White "Kopylov, Alexander A"]
[Black "Patrushev, Konstantin"]
[Result "1-0"]
[ECO "E02"]
[WhiteElo "2421"]
[BlackElo "2138"]
[Annotator "NA"]
[PlyCount "77"]
[EventDate "2018.08.01"]
[EventType "swiss"]
[EventCountry "RUS"]
[SourceTitle "playchess.com"]
[Source "ChessBase"]
[SourceQuality "1"]
[TimeControl "5400+30"]

1. d4 {[%emt 0:05:51]} Nf6 {[%emt 0:00:11]} 2. c4 {[%emt 0:00:26]} e6 {[%emt 0:00:06]} 3. g3 {[%emt 0:00:25]} d5 {[%emt 0:01:51]} 4. Bg2 {[%emt 0:00:31]} dxc4 {[%emt 0:02:00]} 5. Qa4+ {[%emt 0:08:09]} Bd7 {[%emt 0:00:52]} 6. Qxc4 {[%emt 0:00:00]} Bc6 {[%emt 0:00:35]} 7. Bxc6+ {[%emt 0:00:49] E02: Open Catalan: 5 Qa4+} (7. Nf3 Be7 8. Nc3 a6 9. O-O b5 10. Qb3 O-O 11. Bg5 Nbd7 12. Rfd1 h6 13. Bxf6 Nxf6 14. Rac1 Qe8 15. a3 Rc8 {1-0 (46) Romanov,E (2619)-Moiseenko,V (2552) Batumi 2018}) 7... Nxc6 {[%emt 0:00:00]} 8. Nf3 {[%emt 0:00:04]} Qd5 {[%emt 0:02:40]} 9. Qxd5 {[%emt 0:00:04]} exd5 {[%emt 0:00:06]} 10. Nc3 {[%emt 0:00:44]} O-O-O {[%emt 0:04:11]} 11. Bg5 {[%emt 0:06:20]} Be7 {[%emt 0:00:50]} 12. e3 $146 {[%emt 0:05:39]} ({Predecessor:} 12. Rc1 Rhe8 13. Bf4 Ne4 14. Nxe4 dxe4 {½-½ (26) Kuba,S (2156)-Vyprachticky,D (2246) Klatovy 2016}) 12... h6 {[%emt 0:00:57]} 13. Bxf6 {[%emt 0:00:36]} Bxf6 {[%emt 0:00:01]} 14. Rc1 {[%emt 0:11:15]} Kb8 {[%emt 0:06:07]} 15. Ke2 {[%emt 0:04:23]} Rhe8 {[%emt 0:00:35]} 16. Kd3 {[%emt 0:00:18]} h5 {[%emt 0:00:14]} 17. h3 {[%emt 0:09:32]} g6 {[%emt 0:03:14]} 18. g4 {[%emt 0:00:00]} Rh8 {[%emt 0:00:09]} 19. g5 {[%emt 0:01:28]} Bg7 {[%emt 0:01:29]} 20. a3 {[%emt 0:18:41]} Ne7 {[%emt 0:04:33]} 21. Nh4 {[%emt 0:00:29]} c5 {[%emt 0:06:22]} 22. f4 {[%emt 0:01:41]} f5 {[%emt 0:06:41]} 23. gxf6 {[%emt 0:01:29]} ({White should play} 23. b4 $16) 23... Bxf6 {[%emt 0:00:09]} 24. Nf3 {[%emt 0:00:33]} Nf5 {[%emt 0:06:51]} 25. Rhg1 {[%emt 0:01:09]} Rhe8 {[%emt 0:00:14]} 26. Rce1 {[%emt 0:02:43]} Nh4 {[%emt 0:05:45]} 27. Nxh4 {[%emt 0:03:46]} Bxh4 {[%emt 0:00:10]} 28. Ref1 {[%emt 0:01:33]} cxd4 {[%emt 0:00:36]} 29. exd4 {[%emt 0:00:42]} Rd6 {[%emt 0:01:47]} 30. f5 {[%emt 0:05:52]} g5 {[%emt 0:00:21]} 31. Rg2 {[%emt 0:00:54]} ({Reject} 31. f6 $6 Rf8 $11) 31... Rf8 {[%emt 0:09:33] [#]} 32. Re2 $1 {[%emt 0:01:12]} Bg3 $16 {[%emt 0:00:34]} 33. Re5 {[%emt 0:02:30]} Rdf6 {[%emt 0:17:16]} 34. Rxd5 {[%emt 0:00:13]} Bf4 {[%emt 0:00:06]} 35. h4 {[%emt 0:01:24]} Rxf5 {[%emt 0:02:19]} 36. Rxf5 {[%emt 0:00:12]} Rxf5 {[%emt 0:00:00]} 37. hxg5 {[%emt 0:00:09]} Rf8 {[%emt 0:00:05]} 38. Ne4 {[%emt 0:04:20]} b6 {[%emt 0:03:39]} 39. Nf6 {[%emt 0:00:19]} 1-0